Cogmind - Beta 15 @@@ ROGUE MODE // 2025.09.12 @ 04:07:33 Player: Godsword Result: Destroyed by Z4-91B(p) with EM Pulse Gun Performance ------------- Evolutions (0) 0 Regions Visited (3) 600 Robots Destroyed (0) 0 Value Destroyed (0) 0 Prototype IDs (7) 140 Alien Tech Used (0) 0 Bonus (300) 300 TOTAL SCORE: 1040 Bonus ------- Registered with UFD 300 Cogmind --------- Core Integrity 0/250 Matter 240/300 Energy 94/100 System Corruption 0% Temperature Cool (0) Movement Core (50) Location -9/Scraptown Parts ------- > --- POWER (1) -------- (None) > --- PROPULSION (2) --- (None) > --- UTILITY (2) ------ A0-MCA's Component Scanner > --- WEAPON (2) ------- Heavy Hammer > --- INVENTORY (5) ---- Heavy Hammer Peak State ------------ > --- POWER ------------ (None) > --- PROPULSION ------- (None) > --- UTILITY ---------- A0-MCA's Component Scanner > --- WEAPON ----------- Mini Grenade Launcher Mace > --- INVENTORY -------- ECM Suite ECM Suite ECM Suite Heavy Hammer Heavy Hammer [Rating: 13] Favorites ----------- Power None Propulsion None Utility A0-MCA's Component Scanner Processor A0-MCA's Component Scanner Weapon Mini Grenade Launcher Launcher Mini Grenade Launcher Impact Weapon Mace Build | -11 -10 -10 -9 ------- Run | Yrd Mat Sub Scr Slots Evolved . | . . . . Power . | . . . . Propulsion . | . . . . Utility . | . . . . Weapon . | . . . . Parts Attached 4 | . . . 4 Power . | . . . . Engine . | . . . . Core . | . . . . Reactor . | . . . . Propulsion . | . . . . Treads . | . . . . Leg . | . . . . Wheel . | . . . . Hover . | . . . . Flight . | . . . . Utility 1 | . . . 1 Device . | . . . . Storage . | . . . . Processor 1 | . . . 1 Hackware . | . . . . Protection . | . . . . Artifact . | . . . . Weapon 3 | . . . 3 Energy Gun . | . . . . Energy Cannon . | . . . . Ballistic Gun . | . . . . Ballistic Cannon . | . . . . Launcher 1 | . . . 1 Special Weapon . | . . . . Impact Weapon 2 | . . . 2 Slashing Weapon . | . . . . Piercing Weapon . | . . . . Special Melee Weapon . | . . . . Unidentified Prototypes . | . . . . Parts Lost 2 | . . . 2 Power . | . . . . Propulsion . | . . . . Utility . | . . . . Weapon 2 | . . . 2 Highest Loss Streak 2 | . . . 2 To Critical Strikes . | . . . . Average Backups 3 | . 4 5 3 Power . | . . . . Propulsion . | . . . . Utility 2 | . 4 5 2 Weapon 1 | . . . 1 Tool/Special . | . . . . Unused Backups 6 | . . . 6 Power . | . . . . Propulsion . | . . . . Utility 5 | . . . 5 Weapon 1 | . . . 1 Tool/Special . | . . . . Average Slot Usage (%) 19 | . . . 30 Processor 4 | . . . 7 Launcher 8 | . . . 12 Impact Weapon 6 | . . . 10 Peak Build Rating 13 | . . . 13 Average Rating 5 | . . . 8 On Entrance . | . . . . Naked Turns 184 | . 125 44 15 Heaviest Build 3 | . . . 3 Greatest Support 3 | 3 3 3 3 Greatest Overweight (x) . | . . . . Average Overweight (x) . | . . . . Largest Inventory Capacity 5 | 5 5 5 5 Average Capacity 5 | 5 5 5 5 Most Carried 5 | . 5 5 5 Average Carried 4 | . 4 5 4 Final Capacity 5 | 5 5 5 5 Final Carried 5 | . 5 5 1 Class Distribution -------------------- 100% | Mutant Dominant Class ---------------- Mutant | -10/Materials Mutant | -10/Subcaves Mutant | -9/Scraptown Resources | -11 -10 -10 -9 ----------- Run | Yrd Mat Sub Scr Matter Collected 190 | 190 . . . Remotely . | . . . . Salvage Created . | . . . . Parts . | . . . . Haulers Intercepted . | . . . . Recyclers Shooed . | . . . . Parts Field Recycled . | . . . . Retrieved Matter . | . . . . Parts Self-Destructed 5 | . . 5 . Prevented . | . . . . Kills | -11 -10 -10 -9 ------- Run | Yrd Mat Sub Scr Combat Hostiles Destroyed . | . . . . Classes Destroyed . | . . . . Best Kill Streak . | . . . . Combat Bots Only . | . . . . Max Kills in Single Turn . | . . . . Gunslinging . | . . . . Exploded . | . . . . Melee . | . . . . Uniques/NPCs Destroyed . | . . . . Combat | -11 -10 -10 -9 -------- Run | Yrd Mat Sub Scr Hostile Shots Fired 19 | . . . 19 Missed 4 | . . . 4 Hits 15 | . . . 15 Projectile 15 | . . . 15 Critical Strikes 1 | . . . 1 Damage Taken 443 | . . . 443 Core 253 | . . . 253 Absorbed by Shields . | . . . . Core Remaining (%) 100 | 100 . . . Volleys Fired 2 | . . . 2 Largest 1 | . . . 1 Hottest 30 | . . . 30 Shots Fired 2 | . . . 2 Gun . | . . . . Cannon . | . . . . Launcher 2 | . . . 2 Special . | . . . . Kinetic . | . . . . Thermal . | . . . . Explosive 2 | . . . 2 Electromagnetic . | . . . . Robot Hit Streak 2 | . . . 2 Robot Miss Streak . | . . . . Penetration Max . | . . . . Secondary Targets . | . . . . Shots Hit Robots 3 | . . . 3 Core Hits 1 | . . . 1 Critical Kills . | . . . . Critical Parts Destroyed . | . . . . Critical Strikes . | . . . . Melee Attacks 2 | . . . 2 Impact 2 | . . . 2 Slashing . | . . . . Piercing . | . . . . Sneak Attacks . | . . . . Combat Hostiles . | . . . . Follow-up Attacks . | . . . . Damage Inflicted 88 | . . . 88 Guns . | . . . . Cannons . | . . . . Explosions 50 | . . . 50 Melee 38 | . . . 38 Ramming . | . . . . Kinetic . | . . . . Thermal . | . . . . Explosive 50 | . . . 50 Electromagnetic . | . . . . Impact 38 | . . . 38 Slashing . | . . . . Piercing . | . . . . Highest Corruption . | . . . . Average Corruption . | . . . . Corruption Purged . | . . . . Corruption Blocked . | . . . . Overload Shots . | . . . . Overflow Damage . | . . . . Projectiles . | . . . . Explosions . | . . . . Melee . | . . . . Knockbacks 1 | . . . 1 Impact 1 | . . . 1 Kinetic . | . . . . Secondary . | . . . . Self-Inflicted Damage 97 | . . . 97 Shots 2 | . . . 2 Rammed . | . . . . Targets Rammed . | . . . . Kicked . | . . . . Crushed . | . . . . Highest Temperature . | . . . . Average Temperature . | . . . . Received Heat Transfer 36 | . . . 36 Siege Activations . | . . . . Martial Activations . | . . . . Shielding Activations . | . . . . Robots Disrupted . | . . . . Combat Hostiles . | . . . . Robots Corrupted . | . . . . Combat Hostiles . | . . . . Parts Fried . | . . . . Impact Corruptions . | . . . . Robots Melted . | . . . . Combat Hostiles . | . . . . Parts Melted . | . . . . Heat Transferred . | . . . . Parts Sabotaged . | . . . . Parts Stolen . | . . . . Parts Stripped . | . . . . Power Chain Reactions . | . . . . Alert | -11 -10 -10 -9 ------- Run | Yrd Mat Sub Scr Maximum Alert Level . | . . . . Low Security (%) 100 | 100 100 . . Level 1 . | . . . . Level 2 . | . . . . Level 3 . | . . . . Level 4 . | . . . . Level 5 . | . . . . High Security . | . . . . Max Security . | . . . . Peak Influence . | . . . . Initial . | . . . . Average . | . . . . Influence Increases . | . . . . Influence Decreases . | . . . . Squads Dispatched . | . . . . Investigation . | . . . . Extermination . | . . . . Reinforcement . | . . . . Assault . | . . . . Garrison . | . . . . Intercept . | . . . . Searches Triggered . | . . . . Construction Impeded . | . . . . Haulers Reinforced . | . . . . Active Scanning Responses . | . . . . Cargo Convoy Interrupts . | . . . . Stealth | -11 -10 -10 -9 --------- Run | Yrd Mat Sub Scr Distress Signals . | . . . . Communications Jammed . | . . . . Distress Signals . | . . . . Times Spotted 12 | . . . 12 Peak Tracking Total 15 | . . . 15 Tactical Retreats . | . . . . Traps | -11 -10 -10 -9 ------- Run | Yrd Mat Sub Scr Traps Triggered . | . . . . Indirectly . | . . . . Trap Hack Attempts . | . . . . Triggered . | . . . . Disarmed . | . . . . Reprogrammed . | . . . . Reused . | . . . . Traps Extracted . | . . . . Installed 3 | . . . 3 Triggered . | . . . . Most Traps Carried 3 | . . . 3 Machines | -11 -10 -10 -9 ---------- Run | Yrd Mat Sub Scr Machines Disabled 2 | . . . 2 Max in Single Turn 2 | . . . 2 Machines Repaired . | . . . . Machines Dismantled . | . . . . Machines Sabotaged . | . . . . Overloaded Fab Kills . | . . . . Hacking | -11 -10 -10 -9 --------- Run | Yrd Mat Sub Scr Machines Accessed . | . . . . Terminals . | . . . . Fabricators . | . . . . Repair Stations . | . . . . Recycling Units . | . . . . Scanalyzers . | . . . . Garrison Access . | . . . . Total Hacks . | . . . . Successful . | . . . . Failed . | . . . . Catastrophic . | . . . . Database Lockouts . | . . . . Manual . | . . . . Terminals . | . . . . Fabricators . | . . . . Repair Stations . | . . . . Recycling Units . | . . . . Scanalyzers . | . . . . Garrison Access . | . . . . Terminal Hacks . | . . . . Fabricator Hacks . | . . . . Repair Station Hacks . | . . . . Recycling Unit Hacks . | . . . . Scanalyzer . | . . . . Garrison Access Hacks . | . . . . Unauthorized Hacks . | . . . . Terminals . | . . . . Fabricators . | . . . . Repair Stations . | . . . . Recycling Units . | . . . . Scanalyzers . | . . . . Garrison Access . | . . . . Data Cores Recovered . | . . . . Used . | . . . . Hacking Detections . | . . . . Full Trace Events . | . . . . Feedback Events . | . . . . Feedback Blocked . | . . . . Robot Schematics Acquired . | . . . . Robots Built . | . . . . Authchips . | . . . . Time . | . . . . Total Robot Build Rating . | . . . . Part Schematics Acquired . | . . . . Parts Built . | . . . . Authchips . | . . . . Time . | . . . . Total Part Build Rating . | . . . . Parts Repaired . | . . . . Time . | . . . . Parts Recycled . | . . . . Recycled Matter . | . . . . Retrieved Matter . | . . . . Retrieved Components . | . . . . Parts Scanalyzed . | . . . . Part Schematics Acquired . | . . . . Parts Damaged . | . . . . Bothacking | -11 -10 -10 -9 ------------ Run | Yrd Mat Sub Scr Used RIF Installer . | . . . . Robots Hacked . | . . . . Non-combat . | . . . . Combat . | . . . . Robot Hacks Applied . | . . . . Relay Couplers Released . | . . . . Fabnet Peak Effective % . | . . . . Robots Rewired . | . . . . Allies Hacked . | . . . . Hacks Repelled . | . . . . Allies | -11 -10 -10 -9 -------- Run | Yrd Mat Sub Scr Total Allies . | . . . . Largest Group . | . . . . Highest-Rated Group . | . . . . Highest-Rated Ally . | . . . . Total Orders . | . . . . Ally Attacks . | . . . . Total Damage . | . . . . Kills . | . . . . Allies Corrupted . | . . . . Allies Melted . | . . . . Intel | -11 -10 -10 -9 ------- Run | Yrd Mat Sub Scr Active Infowar (turns) . | . . . . Robot Analysis Total . | . . . . Derelict Logs Recovered . | . . . . Drone Launches . | . . . . Drone Recoveries . | . . . . Exploration | -11 -10 -10 -9 ------------- Run | Yrd Mat Sub Scr Turns Passed 511 | 14 125 44 328 Spaces Moved 527 | 27 37 55 408 Core 527 | 27 37 55 408 Treads . | . . . . Legs . | . . . . Wheels . | . . . . Hover . | . . . . Flight . | . . . . Fastest Speed 50 | 50 50 50 50 Average Speed 50 | 50 50 50 50 Slowest Speed 50 | 50 50 50 50 Overloaded Moves . | . . . . Propulsion Burnouts . | . . . . Robots Hopped . | . . . . Potential Cave-ins . | . . . . Cave-ins Triggered . | . . . . Exploration Rate (%) 17 | 3 12 5 49 Regions Visited 3 Branch Regions 2 Pre-discovered Areas . | . . . . Known Exits Taken . | . . . . Unknown Exits Taken 3 | 1 1 1 . Scrap Searched 2 | . . . 2 Spaces Dug . | . . . . Terrain Destroyed 5 | . . . 5 Melee . | . . . . Projectile . | . . . . AOE 5 | . . . 5 Terrain Rammed . | . . . . Walls Destroyed . | . . . . Machines Disabled . | . . . . Actions | -11 -10 -10 -9 --------- Run | Yrd Mat Sub Scr Total 767 | 26 142 70 529 Wait 214 | . 101 16 97 Move 524 | 26 36 54 408 Hop . | . . . . Pick Up 10 | . 5 . 5 Fast Attach 3 | . . . 3 Attach 1 | . . . 1 Detach . | . . . . Swap . | . . . . Drop 8 | . . . 8 Fire 2 | . . . 2 Melee 2 | . . . 2 Ram . | . . . . Kick . | . . . . Crush . | . . . . Escape Stasis . | . . . . Rewire . | . . . . Trap 3 | . . . 3 Miscellaneous . | . . . . Route ------- -11/Scrapyard -10/Materials (discovered 2 exits: [*Min] / [*Sub]) -10/Subcaves -9/Scraptown History --------- Turn | Location | Event 2 | -11/Scrapyard | Met Revision 17 6 | -11/Scrapyard | Discovered new exit (range 12) 15 | -11/Scrapyard | Entered Materials 16 | -10/Materials | Met a group of wandering Federalists 23 | -10/Materials | Discovered new exit (range 15) 35 | -10/Materials | Discovered new exit (range 7) 140 | -10/Materials | Entered Subcaves 140 | -10/Subcaves | Accompanied by 2 allies 141 | -10/Subcaves | Continued accompanying wandering Federalists (2) 141 | -10/Subcaves | Approached by a straggling Scientist 179 | -10/Subcaves | Scientist uncovered a shortcut to Scraptown 184 | -10/Subcaves | Entered Scraptown 306 | -9/Scraptown | Build established: Mutant 307 | -9/Scraptown | Visited UFD Registry 309 | -9/Scraptown | Registered with UFD as "Roughforce" 325 | -9/Scraptown | Visited A0-MCA Data Center 328 | -9/Scraptown | Given an A- rating by A0-MCA 331 | -9/Scraptown | Found A0-MCA's Component Scanner 374 | -9/Scraptown | Visited Science Guys 495 | -9/Scraptown | Warned about trapping Scraptown 497 | -9/Scraptown | Attacked by Scraptown defenders 510 | -9/Scraptown | Core integrity fell below 50% 512 | -9/Scraptown | Core integrity fell below 20% 512 | -9/Scraptown | Destroyed by Z4-91B(p) with EM Pulse Gun Last Messages --------------- 00494_ Installed Vortex Trap. 00495_ ANNOUNCEMENT: Tracking potentially hostile trap installation. 00496_ Installed Vortex Trap. 00497_ ANNOUNCEMENT: Intruder alert! Defend Scraptown! 00497_ Installed Vortex Trap. 00497_ Machine disabled. 00498_ Optimus: "Hey you're that new member, I knew your registry entry had something suspicious about it!" 00501_ Machine disabled. 00504_ Slug penetrates Machine. 00504_ Machine disabled. 00504_ Slug penetrates Machine. 00504_ Mni. Grenade Launcher destroyed. 00506_ Optimus knocked back. 00506_ Penetrated by Slug. 00506_ Mace destroyed. 00511_ Penetrated by Slug. Map ----- +----------------------------------------------------+ | ?????????????????????????????????????????????????? | | ?????????????????????????????????????????????????? | | ?????????????????????????????????????????????????? | | #????????????????????????????????????????????????? | | #????????????????????????????????????????????????? | | ?????????????????????????????????????????????????? | | ?????????????????????????????????????????????????? | | ###??????????????????????????????????????????????? | | #??????????????????????????????????????????????? | | #?????????????????????????????????????????? ? | | #?????????????????????????????????????????? | | #?????????????????????????????????????????? | | #?????????????????????????????????????????? | | #?????????? ?????????? ????????????????? | | #???????? ???????""""?????????????????" | | #???????? "??????""""????????????????" | | #???????? "?###### ######???????????" | | #???????" ""# ##????????#"" | | #???????? ""# X"#????????#"" | | ###?#???" ""# "" "" ##????????#"" | | ""#"#???" ""# "" "" X"#??????###"" | | """"#???" ""# " " ######### #"" | | ""###???#" "" "" g Errj | | ###?????#" "" " E | | #########" ""# 3 " ######### #"" | | ""# @ " ""#??????###"" | | ""# r ##????????#"" | | ""# X"#????????#"" | | ""# ##????????#"" | | ""#### #############"" | | """""""""" " """""""""""""" | | " """""""""" j " """"""""""""" | | " | | "?? c | | "??" | | #"??"#" | | #????#" g p | | #????#"""""" """"""""""" """"""""""" """""" | | ####????####### ########### ########### ###### | | ????????????? ??????#" #??? ???# | | ??????????? ?????#""" """#?# "?# | | ? ??????????"" ?????#"""" """#?#" "# | | ?????????????""" ?????#""" "!"#?#" """"" "# | | ????????????"" " ????#""" """#?#" ????? "# | | ????????????"?"" ????#""" """#?#" ??????"# | | ?????????????" #???#"""""""""#?#"????????# | | ??????????????? #???#"""""""""#??"????????# | | ?????????????? " ##???#"""""""""#???????????# | | ???????????????""""""????#"""""""""#???????????# | | ???????????????##?##??????#########????????????# | +----------------------------------------------------+ Best States ------------- Heat Dissipation 25 Energy Generation 5 Energy Capacity 100 Matter Stores 290 Matter Capacity 300 Sight Range 16 Terrain Scan Density 10 Evasion (%) 50 Item Schematics ----------------- None Robot Schematics ------------------ None Fabricated ------------ Nothing Repaired ---------- Nothing Alien Tech Used ----------------- None Achievements -------------- None Challenges ------------ None Game ------ Seed painworld Manual? 1 Play Time 00:08:53 Cumulative 21.0 hours Start 2025.09.12 @ 04:02:21 End 2025.09.12 @ 04:07:33 Sessions 1 Manual Loads 0 Difficulty Rogue Special Mode None Game No. 64 Rogue 64 Adventurer 0 Explorer 0 Win Type - Total 0 Types 0/0/0/0/0/0/0/0/0/0 Lore% 26 Gallery% 24 Achievement% 28 Wizard Run 0 Options --------- Layout 2 ASCII 0 Keyboard 0 Movement Mouse Keybinds 0 Fullscreen 2 Font 24/Smallcaps Map View 50x44 Zoom Use 0% Tactical HUD 1 Map Filters NONE Filters NONE Steam 1 RUN: 58fe68aa-03b6-4ad5-9548-9e63f55c32a7